bitfinex-derivatives/quotes_BNBF0:USTF0_20250130
["timestamp","ask_amount","ask_price","bid_price","bid_amount"]
[1738202124529,1.10928473,673.51,672.25,0.24406187]
[1738202124725,1.10928473,673.51,672.26,0.24406187]
[1738202125030,0.27302715,673.5,672.27,0.24406187]
[1738202125225,0.27302715,673.5,672.24,0.24406187]
[1738202125421,0.27302715,673.5,672.25,0.24406187]
[1738202125632,0.27302715,673.5,672.24,0.24406187]
[1738202126227,0.27302715,673.69,672.21,0.24406187]
[1738202126432,0.27302715,673.68,672.22,0.24406187]
[1738202126633,0.27302715,673.69,672.21,0.24406187]
[1738202126827,0.27302715,673.68,672.22,0.24406187]
[1738202127032,0.27302715,673.67,672.23,0.24406187]
[1738202127234,0.27302715,673.69,672.21,0.24406187]
[1738202127534,1.55129181,673.67,672.22,0.24406187]
[1738202127731,0.27302715,673.66,672.2,1.10484946]
[1738202128425,0.27302715,673.66,672.21,0.24408183]
[1738202129232,1.10928473,673.63,672.21,0.24408183]
[1738202129439,0.27302715,673.62,672.17,0.24408183]
[1738202129633,1.10928473,673.63,672.16,1.5513725]
[1738202129934,0.27308175,673.62,672.17,0.24407306]
[1738202131233,1.10928473,673.63,672.16,1.5513725]
[1738202131529,0.27308238,673.62,672.17,0.24409321]
[1738202133435,1.10928473,673.57,672.16,1.5513725]
[1738202133628,0.27308238,673.56,672.16,1.5513725]
[1738202135329,0.27308238,673.56,672.17,0.24422008]
[1738202135512,0.27308238,673.56,672.16,1.5513725]
[1738202136404,0.29693415,673.55,672.16,1.5513725]
[1738202136601,0.27308238,673.54,672.16,1.5513725]
[1738202136798,1.10928473,673.46,672.16,1.5513725]
[1738202137102,0.27308238,673.45,672.16,1.5513725]
[1738202137604,0.27308238,673.45,672.17,0.24422036]
[1738202139603,0.29698265,673.44,672.17,0.24422036]
[1738202139803,0.27308238,673.43,672.17,0.24422036]
[1738202140002,0.29699147,673.42,672.17,0.24422036]
[1738202140204,1.10928473,673.33,672.17,1.34906982]
[1738202140503,1.10928473,673.33,672.17,1.10484946]
[1738202140704,0.27312118,673.32,672.18,0.24423503]
[1738202143503,1.10928473,673.29,672.18,0.24423503]
[1738202143697,0.27312118,673.28,672.17,0.24423503]
[1738202146507,0.27312566,673.27,672.18,0.24419511]
[1738202146706,1.38241039,673.28,672.17,0.24419511]
[1738202146909,0.27312566,673.27,672.18,0.24419511]
[1738202147207,0.27312566,673.27,672.13,1.10484946]
[1738202149408,1.38241039,673.27,672.11,0.29757033]
[1738202149603,0.27312566,673.26,672.12,0.24427224]
[1738202151412,1.10928473,673.27,672.11,0.29757033]
[1738202151613,0.27315352,673.26,672.11,0.29757033]
[1738202151806,0.27315352,673.26,672.12,0.24436254]
[1738202152008,1.38243825,673.26,672.12,0.24436254]
[1738202152213,0.27315352,673.25,672.12,0.24436254]
[1738202152613,0.27315352,673.25,672.11,0.29757033]
[1738202153214,0.27315352,673.25,672.12,0.24432987]
[1738202156210,0.27315352,673.25,672.11,0.29757033]
[1738202157013,0.27315352,673.25,672.12,0.24438821]
[1738202157209,0.27315352,673.25,672.11,0.29757033]
[1738202159410,1.10928473,673.26,672.11,0.29757033]
[1738202159818,0.29706646,673.25,672.11,0.29757033]
[1738202160718,0.27320135,673.24,672.11,0.29757033]
[1738202160911,0.29707529,673.23,672.11,0.29757033]
[1738202161110,0.27320135,673.22,672.11,0.29757033]
[1738202161913,1.10928473,673.18,672.11,0.29757033]
[1738202162210,0.2732043,673.17,672.11,0.29757033]
[1738202162614,0.2732043,673.17,671.87,1.10484946]
[1738202162815,0.2732043,673.17,671.88,0.24459904]
[1738202163616,0.29710618,673.16,671.88,0.24459904]
[1738202163818,0.29710618,673.16,671.87,1.10484946]
[1738202164017,0.27322166,673.15,671.88,0.24459733]
[1738202164619,0.27322166,673.15,671.88,0.23793784]
[1738202165020,0.27322166,673.15,671.73,1.10484946]
[1738202165720,0.27322166,673.15,671.74,0.2446129]
[1738202167826,0.27322166,673.15,671.73,1.10484946]
[1738202168027,0.27322166,673.15,671.68,1.10484946]
[1738202168229,0.27322166,673.15,671.69,0.24465434]
[1738202168830,1.40639091,673.16,671.68,1.10484946]
[1738202169032,0.27328077,673.15,671.69,0.24465512]
[1738202170931,1.40639091,673.16,671.68,1.10484946]
[1738202171132,0.2732795,673.15,671.69,0.24465376]
[1738202172232,0.2732795,673.15,671.48,0.24465376]
[1738202172432,0.2732795,673.15,671.49,0.54249885]
[1738202172634,0.2732795,673.15,671.5,0.24465376]
[1738202173930,1.40639091,673.16,671.49,0.29784509]
[1738202174137,0.27328029,673.15,671.5,0.24465453]
[1738202177039,0.27327852,673.14,671.51,0.24462036]
[1738202177240,0.29710618,673.16,671.49,0.29784509]
[1738202177542,0.29710618,673.16,671.5,0.24458144]
[1738202177543,0.27326375,673.15,671.5,0.24458144]
[1738202178540,0.27326375,673.15,671.54,1.10484946]
[1738202178841,0.27326375,673.15,671.55,0.24458144]
[1738202181437,0.27326375,673.15,671.62,1.10484946]
[1738202181642,0.27326375,673.15,671.63,0.24458144]
[1738202182143,0.29710618,673.16,671.62,1.10484946]
[1738202182342,0.27318105,673.15,671.63,0.24423366]
[1738202182940,0.29710618,673.16,671.63,0.24423366]
[1738202183243,0.27317722,673.15,671.63,0.24423366]
[1738202183643,0.29710618,673.16,671.63,0.24423366]
[1738202183839,0.29710618,673.16,671.62,1.10484946]
[1738202184044,0.29710618,673.16,671.63,0.24416744]
[1738202184844,0.29710618,673.16,671.78,1.10484946]
[1738202185040,0.29710618,673.16,671.79,0.24416744]
[1738202185347,0.29710618,673.16,671.8,0.29770765]
[1738202185544,0.29710618,673.16,671.81,0.24416744]
[1738202186763,0.29710618,673.16,671.82,0.29769878]
[1738202186948,0.29710618,673.16,671.83,0.24416744]
[1738202187350,0.29710618,673.16,671.84,0.29768992]
[1738202187544,0.29710618,673.16,671.85,0.24416744]
[1738202187944,0.29710618,673.16,671.86,0.29768106]
[1738202188150,0.29710618,673.16,671.87,0.24416744]
[1738202189245,0.29710618,673.16,671.88,0.2976722]
[1738202189443,0.29710618,673.16,671.89,0.24416744]
[1738202189647,0.29710618,673.16,671.89,0.54183521]
[1738202189950,0.29710618,673.16,671.9,0.24416744]
[1738202191746,0.29710618,673.16,671.89,0.29766777]
[1738202193954,0.29710618,673.16,671.9,0.24414692]
[1738202194155,0.29710618,673.16,671.91,0.29765891]
[1738202194355,0.29710618,673.16,671.92,0.24414692]
[1738202194557,0.29710618,673.16,671.93,0.29765005]
[1738202205366,0.2732215,673.15,671.93,0.29765005]
[1738202205763,0.29711501,673.14,671.93,0.29765005]
[1738202206068,0.2732215,673.13,671.93,0.29765005]
[1738202206261,0.29712384,673.12,671.93,0.29765005]
[1738202206466,0.2732215,673.11,671.93,0.29765005]
[1738202206967,0.57039501,673.1,671.93,0.29765005]
[1738202207268,0.57039943,673.09,671.93,0.29765005]
[1738202207466,0.57040384,673.08,671.93,0.29765005]
[1738202207668,0.29714149,673.08,671.93,0.29765005]
[1738202207868,0.57040662,673.07,671.93,0.29765005]
[1738202208068,0.57041103,673.06,671.93,0.29765005]
[1738202208272,0.57041545,673.05,671.93,0.29765005]
[1738202208469,0.29715474,673.05,671.93,0.29765005]
[1738202214174,0.27328201,673.04,671.93,0.29765005]
[1738202214472,0.57044466,673.03,671.93,0.29765005]
[1738202214683,0.57044907,673.02,671.93,0.29765005]
[1738202214872,0.27328109,673.01,671.93,0.29765005]
[1738202215568,0.29717682,673.0,671.93,0.29765005]
[1738202215767,0.29717682,673.0,671.51,1.10484946]
[1738202215768,0.27328109,672.99,671.51,1.10484946]
[1738202215974,0.29718565,672.98,671.52,0.54235926]
[1738202216172,0.27328109,672.97,671.53,0.54235482]
[1738202216366,0.27328109,672.97,671.54,0.54235039]
[1738202216569,0.27328109,672.97,671.55,0.54234595]
[1738202216783,0.27328109,672.97,671.56,0.54234152]
[1738202216970,0.27328109,672.97,671.57,0.54233709]
[1738202217169,0.27328109,672.97,671.58,0.54233265]
[1738202217372,0.27328109,672.97,671.59,0.54232822]
[1738202217568,0.27328109,672.97,671.6,0.24452748]
[1738202218074,0.29718565,672.98,671.6,0.24452748]
[1738202218468,0.29718565,672.98,671.61,0.24451638]
[1738202218669,0.29718565,672.98,671.62,0.24451638]
[1738202218868,0.29718565,672.98,671.6,0.24451638]
[1738202219073,0.29718565,672.98,671.62,1.55268187]
[1738202219375,0.29718565,672.98,671.63,0.24451638]
[1738202219976,0.29718565,672.98,671.62,1.55268187]
[1738202220174,0.27330532,672.97,671.62,1.55268187]
[1738202220374,0.57049538,672.97,671.62,1.55268187]
[1738202220574,0.27330532,672.96,671.62,1.55268187]
[1738202220778,0.29719006,672.97,671.62,1.55268187]
[1738202220978,0.27329606,672.96,671.63,0.24454727]
[1738202222275,0.29719006,672.97,671.63,0.24454727]
[1738202223079,0.29719006,672.97,671.64,0.29777857]
[1738202223379,0.29719006,672.97,671.65,0.24454727]
[1738202223982,0.29719006,672.97,671.64,0.29777857]
[1738202225174,0.29719006,672.97,671.65,0.24440063]
[1738202225379,0.27325305,672.96,671.65,0.24440063]
[1738202226781,0.27325305,672.96,671.66,0.2977697]
[1738202226982,0.27325305,672.96,671.67,0.24440063]
[1738202227983,0.29719006,672.97,671.66,0.2977697]
[1738202228183,0.27327623,672.96,671.67,0.24447008]
[1738202231378,0.27329392,672.95,671.68,0.24452481]
[1738202231682,0.27329392,672.94,671.69,0.24452481]
[1738202231883,0.27329392,672.93,671.7,0.24452481]
[1738202232085,0.27329392,672.96,671.67,0.24452481]
[1738202232384,0.27329392,672.95,671.68,0.24452481]
[1738202232587,0.27329392,672.94,671.69,0.24452481]
[1738202232788,0.27328268,672.96,671.67,0.24452481]
[1738202233085,0.29719006,672.97,671.68,0.24452481]
[1738202233285,0.27327395,672.96,671.69,0.24452481]
[1738202233479,0.27327395,672.96,671.7,0.24452481]
[1738202233684,0.27327395,672.96,671.71,0.24452481]
[1738202233879,0.27327395,672.96,671.72,0.24452481]
[1738202234084,0.27327395,672.96,671.73,0.24452481]
[1738202234285,0.27327395,672.96,671.67,0.24452481]
[1738202234586,0.27327395,672.96,671.68,0.24452481]
[1738202234787,0.27327395,672.96,671.69,0.24452481]
[1738202234987,0.27327395,672.96,671.7,0.24452481]
[1738202235287,0.27327395,672.96,671.66,0.2977697]
[1738202235288,0.27327395,672.96,671.71,0.24452481]
[1738202235481,0.27327395,672.96,671.67,0.24452481]
[1738202235687,0.27327395,672.96,671.68,0.24452481]
[1738202235886,0.27327395,672.96,671.69,0.24452481]
[1738202236086,0.27327395,672.96,671.67,0.24452481]
[1738202236384,0.27326606,672.95,671.68,0.24455784]
[1738202236583,0.27326606,672.96,671.67,0.24455784]
[1738202236779,0.27326606,672.95,671.68,0.24455784]
[1738202236991,0.29719006,672.97,671.67,0.24455784]
[1738202238080,0.29719006,672.97,671.66,0.2977697]
[1738202238081,1.40647479,672.97,671.72,1.10484946]
[1738202238287,1.40647479,672.97,671.73,0.24447948]
[1738202239580,1.40647479,672.97,671.72,1.10484946]
[1738202239784,0.27324684,672.96,671.73,0.24449842]
[1738202240687,0.27324684,672.96,671.81,1.10484946]
[1738202240888,0.27324684,672.96,671.82,0.24449842]
[1738202241187,0.29719006,672.97,671.81,1.10484946]
[1738202241387,0.2732449,672.96,671.82,0.24449269]
[1738202243885,1.10928473,672.93,671.87,1.10484946]
[1738202244189,1.10928473,672.93,671.88,0.24449269]
[1738202246182,1.10928473,672.93,671.87,1.10484946]
[1738202247591,1.10928473,672.96,671.85,1.10484946]
[1738202250593,0.29719006,672.97,671.72,1.55247984]
[1738202256297,0.29719006,672.97,671.73,0.24464238]
[1738202257593,0.27326864,672.96,671.73,0.24464238]
[1738202257793,0.27326746,672.95,671.74,0.24464192]
[1738202257995,0.27326746,672.96,671.73,0.24464192]
[1738202258195,0.27326746,672.95,671.74,0.24464192]
[1738202258392,0.27326746,672.94,671.75,0.24464192]
[1738202258595,0.27326746,672.96,671.73,0.24464192]
[1738202258798,0.27326746,672.95,671.74,0.24464192]
[1738202258993,0.27326746,672.94,671.75,0.24464192]
[1738202259194,0.27326746,672.96,671.76,0.24464192]
[1738202259395,0.27326746,672.95,671.73,0.24464192]
[1738202259594,0.27326746,672.96,671.74,0.24464192]
[1738202259800,0.27326746,672.95,671.73,0.24464192]
[1738202260000,0.27326746,672.94,671.74,0.24464192]
[1738202260194,1.10928473,672.83,671.86,1.10484946]
[1738202260399,1.10928473,672.83,671.87,0.24464192]
[1738202260996,1.10928473,672.83,671.86,1.10484946]
[1738202261200,1.10928473,672.83,671.87,0.24464333]
[1738202262596,1.10928473,672.83,671.86,1.10484946]
[1738202262802,1.10928473,672.83,671.87,0.24464174]
[1738202263699,1.10928473,672.83,671.86,0.24464174]
[1738202263900,1.10928473,672.83,671.87,0.24464174]
[1738202264101,1.10928473,672.83,671.88,0.24464174]
[1738202264301,1.10928473,672.83,671.85,1.10484946]
[1738202264503,1.10928473,672.83,671.86,0.24464191]
[1738202268519,1.10928473,672.82,671.86,1.34949137]
[1738202268706,1.10928473,672.82,671.87,0.24464191]
[1738202269707,1.10928473,672.82,671.86,1.10484946]
[1738202270906,1.10928473,672.82,671.87,0.24463963]
[1738202271105,1.10928473,672.82,671.86,1.10484946]
[1738202271406,1.10928473,672.82,671.87,0.2446404]
[1738202271605,1.10928473,672.8,671.87,1.34948986]
[1738202271799,1.10928473,672.8,671.87,1.10484946]
[1738202274105,1.10928473,672.81,671.86,1.10484946]
[1738202274507,1.10928473,672.81,671.87,0.24464062]
[1738202274808,1.10928473,672.81,671.86,1.10484946]
[1738202277307,1.10928473,672.81,671.87,1.10484946]
[1738202280511,0.27327007,672.8,671.88,0.24464442]
[1738202282007,0.27327007,672.81,671.87,0.24464442]
[1738202282210,0.27327007,672.8,671.87,0.24464442]
[1738202282410,0.27327007,672.81,671.87,0.24464442]
[1738202282605,0.27327007,672.8,671.87,0.24464442]
[1738202282812,0.27327007,672.81,671.87,0.24464442]
[1738202283004,0.27327007,672.8,671.87,0.24464442]
[1738202283211,0.27327007,672.79,671.87,0.24464442]
[1738202283405,0.27327007,672.81,671.87,0.24464442]
[1738202283609,0.27326995,672.8,671.87,0.24464442]
[1738202283807,1.10928473,672.82,671.87,0.24464442]
[1738202284111,1.10928473,672.7,671.98,1.10484946]
[1738202293318,1.10928473,672.71,671.8,1.55263569]
[1738202295616,1.10928473,672.75,671.8,1.55263569]
[1738202298031,1.10928473,672.76,671.8,1.55263569]
[1738202298220,0.27332747,672.75,671.71,1.10484946]
[1738202298518,1.10928473,672.76,671.71,1.10484946]
[1738202298718,0.27332843,672.75,671.71,1.10484946]
[1738202299718,0.27332843,672.75,671.72,0.24470876]
[1738202300235,1.10928473,672.76,671.71,1.10484946]
[1738202300434,0.27333556,672.75,671.71,1.10484946]
[1738202301334,0.27333556,672.75,671.64,1.55293593]
[1738202301335,1.10928473,672.69,671.65,1.10484946]
[1738202301535,0.27333556,672.68,671.65,1.10484946]
[1738202302031,0.27335232,672.67,671.65,1.10484946]
[1738202302235,0.27335232,672.66,671.65,1.10484946]
[1738202302425,0.27335232,672.65,671.65,1.10484946]
[1738202302626,1.10928473,672.69,671.65,1.10484946]
[1738202302827,0.27335203,672.68,671.65,1.10484946]
[1738202304422,0.27335203,672.68,671.64,1.55293593]
[1738202304625,0.27335203,672.67,671.67,0.24472244]
[1738202304825,0.27335203,672.66,671.64,1.55293593]
[1738202305020,1.10928473,672.7,671.64,1.55293593]
[1738202305218,0.27335005,672.69,671.64,1.55293593]
[1738202306627,0.27335005,672.69,671.67,0.24471797]
[1738202307825,1.10928473,672.76,671.67,0.24471797]
[1738202308026,0.27333564,672.75,671.67,0.24471797]
[1738202309222,0.27333564,672.75,671.64,1.55293593]
[1738202309425,0.27333564,672.75,671.67,0.24471541]
[1738202310730,0.27333564,672.78,671.67,0.24471541]
[1738202310927,0.27333564,672.77,671.67,0.24471541]
[1738202311128,0.27333564,672.76,671.67,0.24471541]
[1738202311329,0.27333564,672.75,671.67,0.24471541]
[1738202311632,0.27333564,672.74,671.67,0.24471541]
[1738202311830,0.27333564,672.73,671.67,0.24471541]
[1738202312023,0.27333774,672.72,671.68,0.24471103]
[1738202312225,0.27333774,672.78,671.67,0.24471103]
[1738202312430,0.27333774,672.77,671.68,0.24471103]
[1738202312625,0.27333774,672.78,671.67,0.24471103]
[1738202312826,0.27333774,672.77,671.68,0.24471103]
[1738202313029,0.27333774,672.78,671.67,0.24471103]
[1738202313228,0.27333774,672.77,671.68,0.24471103]
[1738202313429,0.27333774,672.76,671.69,0.24471103]
[1738202313628,1.10928473,672.79,671.64,1.55293593]
[1738202313833,0.27333931,672.78,671.67,0.24471261]
[1738202314134,1.10928473,672.74,671.67,0.24471261]
[1738202314326,0.27333931,672.73,671.67,0.24471261]
[1738202314530,1.10928473,672.74,671.67,0.24471261]
[1738202317730,1.10928473,672.89,671.67,0.24471261]
[1738202317931,0.27326719,672.88,671.67,0.54247788]
[1738202318136,0.27326719,672.88,671.68,0.24471261]
[1738202321941,0.27326719,672.88,671.72,1.10484946]
[1738202322141,0.27326719,672.91,671.73,0.24471261]
[1738202322440,0.27326719,672.9,671.73,0.24471261]
[1738202322740,0.27326719,672.89,671.73,0.24471261]
[1738202322941,0.27326719,672.91,671.73,0.24471261]
[1738202323135,0.27326719,672.9,671.73,0.24471261]
[1738202323343,0.27326719,672.89,671.73,0.24471261]
[1738202323542,0.27327762,672.88,671.74,0.24465186]
[1738202323842,0.27327762,672.87,671.75,0.24465186]
[1738202324037,0.27327762,672.91,671.73,0.24465186]
[1738202324246,0.27327762,672.9,671.74,0.24465186]
[1738202324446,0.27327762,672.91,671.73,0.24465186]
[1738202324744,0.27327762,672.9,671.74,0.24465186]
[1738202324938,0.27327762,672.89,671.75,0.24465186]
[1738202325143,0.27327762,672.91,671.73,0.24465186]
[1738202325344,0.27327762,672.9,671.74,0.24465186]
[1738202325544,1.38256235,672.91,671.73,0.24465186]
[1738202325740,0.27327762,672.9,671.74,0.24465186]
[1738202325942,0.27327762,672.9,671.75,0.24465186]
[1738202326147,0.27327762,672.9,671.73,0.24465186]
[1738202326339,0.27327762,672.9,671.74,0.24465186]
[1738202326646,0.27327762,672.9,671.75,0.24465186]
[1738202326846,0.27327762,672.9,671.73,0.24465186]
[1738202327145,0.27327762,672.9,671.74,0.24465186]
[1738202327345,0.27327762,672.9,671.73,0.24465186]
[1738202327546,0.27327762,672.9,671.74,0.24465186]
[1738202327841,0.27327762,672.9,671.72,1.10484946]
[1738202327842,0.27327762,672.9,671.75,0.24465186]
[1738202328048,0.27327762,672.9,671.73,0.24465186]
[1738202328347,0.27327762,672.9,671.74,0.24465186]
[1738202328554,0.27327762,672.9,671.73,0.24465186]
[1738202328748,0.27327762,672.9,671.74,0.24465186]
[1738202328946,0.27327762,672.9,671.75,0.24465186]
[1738202329247,0.27327762,672.9,671.76,0.24465186]
[1738202329449,0.27327762,672.9,671.76,1.10484946]
[1738202329648,0.27327762,672.92,671.77,0.24465186]
[1738202329851,0.27327762,672.91,671.77,0.24465186]
[1738202330050,0.27327762,672.92,671.77,0.24465186]
[1738202330250,0.27327762,672.91,671.77,0.24465186]
[1738202330445,0.27327762,672.9,671.77,0.24465186]
[1738202330650,1.10928473,672.93,671.77,0.24465186]
[1738202330651,0.27327762,672.89,671.77,0.24465186]
[1738202330852,0.27327762,672.92,671.77,0.24465186]
[1738202332153,0.27327762,672.92,671.77,1.34950132]
[1738202332351,0.27327762,672.91,671.78,0.24465186]
[1738202332546,0.27327762,672.9,671.78,0.24465186]
[1738202332757,1.40647479,672.97,671.78,0.24465186]
[1738202332949,0.27326911,672.96,671.78,0.24465186]
[1738202334451,0.27326872,672.95,671.79,0.24464316]
[1738202334654,0.27326872,672.94,671.8,0.24464316]
[1738202334850,0.27326872,672.93,671.81,0.24464316]
[1738202335050,0.27326872,672.96,671.73,0.24464316]
[1738202335356,0.27326872,672.95,671.74,0.24464316]
[1738202335651,0.27326872,672.94,671.75,0.24464316]
[1738202335955,0.27326872,672.93,671.76,0.24464316]
[1738202336153,0.27326872,672.92,671.72,1.55258374]
[1738202336354,0.27326872,672.91,671.73,0.24467205]
[1738202336656,0.27326872,672.9,671.73,0.24467205]
[1738202336848,0.27329679,672.89,671.74,0.24467065]
[1738202337049,0.27329679,672.96,671.73,0.24467065]
[1738202337251,0.27329679,672.95,671.74,0.24467065]
[1738202337453,0.27329679,672.96,671.75,0.24467065]
[1738202337653,0.27329679,672.95,671.76,0.24467065]
[1738202337857,0.27329679,672.94,671.72,1.55258374]
[1738202338249,0.27329679,672.94,671.73,0.24467071]
[1738202338454,1.10928473,672.95,671.72,1.55258374]
[1738202338654,0.2732973,672.94,671.73,0.24467119]
[1738202340247,0.27329933,672.93,671.74,0.24467321]
[1738202340452,1.38258406,672.92,671.75,0.24467321]
[1738202340649,0.27329933,672.91,671.73,0.24467321]
[1738202340954,0.27329933,672.91,671.74,0.2446737]
[1738202341164,0.27329933,672.91,671.73,0.2446737]
[1738202341454,0.27329933,672.91,671.74,0.2446737]
[1738202341656,0.27329933,672.91,671.73,0.2446737]
[1738202341849,0.27329933,672.91,671.75,0.2446737]
[1738202342153,0.27329933,672.91,671.74,0.2446737]
[1738202342554,0.27329933,672.91,671.76,0.2446737]
[1738202342856,0.27329933,672.91,671.77,0.2446737]
[1738202343153,0.27329933,672.91,671.72,1.55258374]
[1738202343357,0.27329933,672.91,671.73,0.24469306]
[1738202343651,1.10928473,672.89,671.74,0.2446936]
[1738202343854,0.27332001,672.88,671.73,0.2446936]
[1738202344055,0.27332001,672.88,671.72,1.55258374]
[1738202344056,0.27332001,672.88,671.74,0.2446936]
[1738202344356,0.27332001,672.88,671.72,1.55258374]
[1738202344357,0.27332001,672.88,671.75,0.2446936]
[1738202344557,0.27332001,672.88,671.73,0.2446936]
[1738202344756,0.27332001,672.88,671.74,0.2446936]
[1738202345056,0.27332001,672.88,671.75,0.2446936]
[1738202345258,0.27332001,672.88,671.73,0.2446936]
[1738202345452,0.27332001,672.88,671.72,1.55258374]
[1738202345453,0.27332001,672.88,671.74,0.2446936]
[1738202345651,0.27332001,672.88,671.73,0.2446936]
[1738202345856,1.10928473,672.89,671.72,1.55258374]
[1738202346858,0.29719006,672.97,671.72,1.55258374]
[1738202346859,1.10928473,672.8,671.72,2.6574332]
[1738202350057,0.29719006,672.97,671.72,1.55258374]
[1738202355371,1.40647479,672.97,671.72,1.55258374]
[1738202355768,0.27330418,672.96,671.73,0.24467801]
[1738202358572,1.10928473,672.82,671.73,0.24467801]
[1738202360386,0.27330119,672.81,671.73,0.24467801]
[1738202361573,1.10928473,672.82,671.73,0.24467801]
[1738202362173,0.27330017,672.81,671.73,0.24467801]
[1738202362570,1.10928473,672.82,671.73,0.24467801]
[1738202362770,0.27329649,672.81,671.73,0.24467801]
[1738202364675,1.10928473,672.78,671.76,1.10484946]
[1738202364876,1.10928473,672.78,671.77,0.24467264]
[1738202366878,1.10928473,672.78,671.76,1.10484946]
[1738202367179,1.10928473,672.78,671.77,0.24466754]
[1738202367879,1.10928473,672.77,671.77,0.24466754]
[1738202370174,1.10928473,672.77,671.76,1.10484946]
[1738202370777,1.10928473,672.77,671.72,1.55258374]
[1738202370778,1.10928473,672.76,671.8,1.10484946]
[1738202374481,1.10928473,672.81,671.76,1.10484946]
[1738202377986,1.10928473,672.81,671.78,1.10484946]
[1738202380190,0.29719006,672.97,671.75,1.55275692]
[1738202380191,1.10928473,672.8,671.79,1.34951041]
[1738202380586,1.10928473,672.8,671.8,0.24466095]
[1738202381386,1.10928473,672.8,671.79,1.10484946]
[1738202383296,1.10928473,672.82,671.8,1.10484946]
[1738202386788,1.10928473,672.82,671.75,1.55275692]
[1738202386789,1.10928473,672.78,671.82,1.10484946]
[1738202389596,1.10928473,672.82,671.81,1.10484946]
[1738202392389,1.10928473,672.82,671.82,0.24462534]
[1738202392590,1.10928473,672.82,671.81,1.10484946]
[1738202392792,1.10928473,672.82,671.82,0.24461891]
[1738202393294,1.10928473,672.82,671.81,1.10484946]
[1738202393594,1.10928473,672.82,671.82,0.24461996]
[1738202394295,1.10928473,672.94,671.84,1.10484946]
[1738202394493,1.10928473,672.94,671.85,0.24461996]
[1738202397093,0.29719006,672.97,671.85,1.34946942]
[1738202397094,1.40647479,672.97,671.85,1.34946942]
[1738202397301,1.40647479,672.97,671.86,0.24461996]
[1738202397701,1.40647479,672.97,671.85,1.10484946]
[1738202398411,1.40647479,672.97,671.85,1.40253495]
[1738202399202,1.40647479,672.97,671.86,0.29768106]
[1738202400506,0.29719006,672.97,671.86,0.29768106]
[1738202400700,1.10928473,673.3,671.87,0.24452181]
[1738202400904,1.10928473,673.3,671.88,0.2976722]
[1738202401203,1.10928473,673.3,671.89,0.24450592]
[1738202401404,1.10928473,673.3,671.9,0.29766334]
[1738202401602,1.10928473,673.3,671.91,0.24450592]
[1738202402805,1.10928473,673.3,671.92,0.24452349]
[1738202403105,1.10928473,673.3,671.93,0.24452666]
[1738202403307,1.10928473,673.3,671.94,0.24452666]
[1738202403507,1.10928473,673.3,671.95,0.54216785]
[1738202403706,1.55196058,673.4,671.95,0.54216785]
[1738202403707,1.55196058,673.4,671.96,0.24452666]
[1738202403909,0.57015111,673.39,671.96,0.24452666]
[1738202404207,0.57015552,673.38,671.96,0.24452666]
[1738202404406,0.57015993,673.37,671.96,0.24452666]
[1738202404707,0.57016434,673.36,671.96,0.24452666]
[1738202404906,0.27314641,673.35,671.96,0.24452666]
[1738202406307,0.27314186,673.34,671.97,0.24451809]
[1738202406510,0.27314186,673.34,671.98,0.24451809]
[1738202406807,0.27314186,673.34,671.99,0.24451809]
[1738202407008,0.27314186,673.34,672.0,0.24451809]
[1738202407206,0.27314186,673.34,671.96,0.24451809]
[1738202407407,0.27314186,673.34,671.97,0.24451809]
[1738202407706,0.27314186,673.34,671.98,0.24451809]
[1738202407909,0.27314186,673.34,671.99,0.24451809]
[1738202408108,0.27314186,673.34,671.96,0.24451809]
[1738202408309,0.27314186,673.34,671.97,0.24451809]
[1738202408609,0.27314186,673.34,671.98,0.24451809]
[1738202408908,0.27314186,673.34,671.95,0.29764119]
[1738202408909,0.27314186,673.34,671.99,0.24451809]
[1738202409109,0.29703117,673.33,671.96,0.24451809]
[1738202409310,0.27314186,673.32,671.97,0.24451809]
[1738202409608,0.29703999,673.31,671.98,0.24451809]
[1738202409810,0.27314186,673.3,671.99,0.24451809]
[1738202410110,0.27314186,673.3,672.0,0.24451809]
[1738202410309,0.27314186,673.3,672.01,0.24451809]
[1738202410514,0.27314186,673.3,671.96,0.24451809]
[1738202410810,0.27314186,673.3,671.97,0.24451809]
[1738202411010,0.29703999,673.31,671.95,0.29764119]
[1738202411208,0.27316649,673.3,671.96,0.24454257]
[1738202413712,0.57021089,673.3,671.96,0.24454257]
[1738202413912,0.27316649,673.29,671.96,0.24454257]
[1738202414307,0.2970444,673.3,671.95,0.29764119]
[1738202414612,0.27315191,673.29,671.96,0.2445281]
[1738202416115,0.27315191,673.29,671.95,0.29764119]
[1738202416713,1.55231825,673.28,671.95,0.29764119]
[1738202416912,0.27315191,673.27,671.95,0.29764119]
[1738202417614,1.55231825,673.28,671.95,0.29764119]
[1738202418316,0.29706205,673.26,671.95,0.29764119]
[1738202418816,0.29706205,673.26,671.96,0.24461785]
[1738202419017,0.29706205,673.26,671.95,0.29764119]
[1738202419213,0.27326839,673.25,671.95,0.29764119]
[1738202419614,1.10928473,673.17,671.95,0.29764119]
[1738202419811,0.27326839,673.16,671.95,0.29764119]
[1738202420117,0.29711059,673.15,671.96,0.24462462]
[1738202420323,0.27326839,673.14,671.97,0.24461876]
[1738202420618,0.29711942,673.13,671.95,0.29764119]
[1738202420918,0.27326839,673.12,671.96,0.24462362]
[1738202421110,0.57039223,673.12,671.95,0.29764119]